[Event "Open NK Rapid 2025"]
[Site "Helmond, Netherlands"]
[Date "2025.05.03"]
[Round "8.17"]
[White "Geboers, Jimmy"]
[Black "Blijlevens, Pim"]
[Result "0-1"]
[TimeControl "15+5"]
[WhiteFideId "262919"]
[BlackFideId "1022997"]
[WhiteElo "2065"]
[BlackElo "1969"]

1. d4 {[%clk 00:15:09]} e6 {[%clk 00:15:08]} {[%emt 00:00:02]} 2. c4 {[%clk
00:15:09]} {[%emt 00:00:04]} f5 {[%clk 00:15:11]} {[%emt 00:00:02]} 3. g3
{[%clk 00:15:12]} {[%emt 00:00:05]} Nf6 {[%clk 00:15:14]} 4. Bg2 {[%clk
00:15:15]} {[%emt 00:00:02]} Be7 {[%clk 00:15:16]} {[%emt 00:00:03]} 5. Nc3
{[%clk 00:15:11]} {[%emt 00:00:09]} O-O {[%clk 00:15:17]} {[%emt 00:00:03]} 6.
f4 {[%clk 00:14:56]} {[%emt 00:00:20]} d6 {[%clk 00:14:57]} {[%emt 00:00:24]} 7.
Qc2 {[%clk 00:14:48]} {[%emt 00:00:13]} a5 {[%clk 00:14:41]} {[%emt 00:00:22]}
8. e4 {[%clk 00:14:25]} {[%emt 00:00:28]} fxe4 {[%clk 00:13:24]} {[%emt
00:01:23]} 9. Nxe4 {[%clk 00:14:26]} {[%emt 00:00:03]} Nc6 {[%clk 00:12:50]}
{[%emt 00:00:39]} 10. Ne2 {[%clk 00:13:20]} {[%emt 00:01:11]} e5 {[%clk
00:11:39]} {[%emt 00:01:16]} 11. d5 {[%clk 00:11:46]} {[%emt 00:01:38]} Nb4
{[%clk 00:11:00]} {[%emt 00:00:45]} 12. Qb1 {[%clk 00:11:44]} {[%emt 00:00:06]}
Bd7 {[%clk 00:07:19]} {[%emt 00:03:47]} 13. fxe5 {[%clk 00:11:14]} {[%emt
00:00:34]} dxe5 {[%clk 00:07:19]} {[%emt 00:00:06]} 14. Be3 {[%clk 00:09:59]}
{[%emt 00:01:19]} Ng4 {[%clk 00:05:34]} {[%emt 00:01:52]} 15. Bg1 {[%clk
00:10:00]} {[%emt 00:00:02]} Bf5 {[%clk 00:05:28]} {[%emt 00:00:12]} 16. h3
{[%clk 00:09:52]} {[%emt 00:00:14]} Nf6 {[%clk 00:05:32]} {[%emt 00:00:01]} 17.
Be3 {[%clk 00:08:41]} {[%emt 00:01:15]} Nxe4 {[%clk 00:05:16]} {[%emt
00:00:22]} 18. Bxe4 {[%clk 00:08:41]} {[%emt 00:00:04]} Bxe4 {[%clk 00:05:14]}
{[%emt 00:00:07]} 19. Qxe4 {[%clk 00:08:42]} {[%emt 00:00:03]} Qd7 {[%clk
00:04:17]} {[%emt 00:01:04]} 20. a3 {[%clk 00:08:29]} {[%emt 00:00:17]} Na6
{[%clk 00:04:21]} {[%emt 00:00:02]} 21. O-O-O {[%clk 00:08:05]} {[%emt
00:00:27]} Nc5 {[%clk 00:04:09]} {[%emt 00:00:18]} 22. Bxc5 {[%clk 00:07:21]}
{[%emt 00:00:48]} Bxc5 {[%clk 00:04:13]} {[%emt 00:00:02]} 23. g4 {[%clk
00:07:09]} {[%emt 00:00:16]} Qd6 {[%clk 00:03:51]} {[%emt 00:00:28]} 24. Nc3
{[%clk 00:06:35]} {[%emt 00:00:37]} Rf4 {[%clk 00:03:54]} {[%emt 00:00:04]} 25.
Qe2 {[%clk 00:06:37]} {[%emt 00:00:02]} Bd4 {[%clk 00:02:54]} {[%emt 00:01:07]}
26. Nb5 {[%clk 00:06:34]} {[%emt 00:00:07]} Qh6 {[%clk 00:02:52]} {[%emt
00:00:08]} 27. Kb1 {[%clk 00:06:10]} {[%emt 00:00:28]} Rf2 {[%clk 00:02:53]}
{[%emt 00:00:04]} 28. Qe4 {[%clk 00:05:54]} {[%emt 00:00:20]} Rxb2+ {[%clk
00:02:45]} {[%emt 00:00:15]} 29. Ka1 {[%clk 00:05:56]} Re2+ {[%clk 00:02:14]}
{[%emt 00:00:38]} 30. Rxd4 {[%clk 00:05:58]} {[%emt 00:00:02]} Rxe4 {[%clk
00:02:17]} {[%emt 00:00:02]} 31. Rxe4 {[%clk 00:06:01]} {[%emt 00:00:02]} c6
{[%clk 00:01:43]} {[%emt 00:00:40]} 32. Nc3 {[%clk 00:05:10]} {[%emt 00:00:55]}
Qd2 {[%clk 00:01:37]} {[%emt 00:00:10]} 33. Nb1 {[%clk 00:03:55]} {[%emt
00:01:21]} Qc2 {[%clk 00:01:29]} {[%emt 00:00:13]} 34. Rhe1 {[%clk 00:03:50]}
{[%emt 00:00:09]} cxd5 {[%clk 00:01:26]} {[%emt 00:00:10]} 35. cxd5 {[%clk
00:03:53]} {[%emt 00:00:01]} b5 {[%clk 00:01:16]} {[%emt 00:00:16]} 36. R4e2
{[%clk 00:02:17]} {[%emt 00:01:40]} Qc5 {[%clk 00:01:13]} {[%emt 00:00:07]} 37.
Rd2 {[%clk 00:02:17]} {[%emt 00:00:06]} b4 {[%clk 00:01:01]} {[%emt 00:00:18]}
38. d6 {[%clk 00:02:15]} {[%emt 00:00:06]} Rd8 {[%clk 00:00:55]} {[%emt
00:00:11]} 39. Red1 {[%clk 00:02:10]} {[%emt 00:00:09]} bxa3 {[%clk 00:00:43]}
{[%emt 00:00:19]} 40. d7 {[%clk 00:02:13]} {[%emt 00:00:01]} e4 {[%clk
00:00:41]} {[%emt 00:00:08]} 41. Ka2 {[%clk 00:01:27]} {[%emt 00:00:50]} e3
{[%clk 00:00:42]} {[%emt 00:00:06]} 42. Rd5 {[%clk 00:01:21]} {[%emt 00:00:11]}
Qc4+ {[%clk 00:00:35]} {[%emt 00:00:12]} 43. Kxa3 {[%clk 00:01:14]} {[%emt
00:00:11]} e2 {[%clk 00:00:38]} {[%emt 00:00:02]} 44. Re5 {[%clk 00:00:50]}
{[%emt 00:00:28]} exd1=Q {[%clk 00:00:24]} {[%emt 00:00:20]} 45. Re8+ {[%clk
00:00:51]} {[%emt 00:00:04]} Kf7 {[%clk 00:00:29]} 0-1

[Event "Open NK Rapid 2025"]
[Site "Helmond, Netherlands"]
[Date "2025.05.03"]
[Round "8.18"]
[White "Cayonlu, Arda"]
[Black "Bekkink, Sereyo"]
[Result "0-1"]
[TimeControl "15+5"]
[WhiteFideId "6339786"]
[BlackFideId "1037161"]
[WhiteElo "1885"]
[BlackElo "2064"]

1. e4 {[%clk 00:15:09]} e5 {[%clk 00:15:09]} {[%emt 00:00:02]} 2. f4 {[%clk
00:15:12]} {[%emt 00:00:01]} d5 {[%clk 00:15:13]} {[%emt 00:00:02]} 3. exd5
{[%clk 00:15:12]} {[%emt 00:00:05]} exf4 {[%clk 00:15:17]} {[%emt 00:00:01]} 4.
Nf3 {[%clk 00:15:15]} {[%emt 00:00:05]} Nf6 {[%clk 00:15:20]} 5. c4 {[%clk
00:14:03]} {[%emt 00:01:16]} c6 {[%clk 00:15:09]} {[%emt 00:00:16]} 6. d4
{[%clk 00:13:34]} {[%emt 00:00:34]} Bb4+ {[%clk 00:11:50]} {[%emt 00:03:24]} 7.
Bd2 {[%clk 00:11:16]} {[%emt 00:02:23]} Qe7+ {[%clk 00:09:24]} {[%emt
00:02:31]} 8. Be2 {[%clk 00:11:08]} {[%emt 00:00:13]} cxd5 {[%clk 00:09:24]}
{[%emt 00:00:05]} 9. O-O {[%clk 00:10:57]} {[%emt 00:00:14]} Bxd2 {[%clk
00:08:29]} {[%emt 00:01:02]} 10. Qxd2 {[%clk 00:10:40]} {[%emt 00:00:22]} Qe3+
{[%clk 00:08:29]} {[%emt 00:00:05]} 11. Kh1 {[%clk 00:09:53]} {[%emt 00:00:51]}
Ng4 {[%clk 00:07:54]} {[%emt 00:00:42]} 12. Nc3 {[%clk 00:07:58]} {[%emt
00:01:59]} Be6 {[%clk 00:05:30]} {[%emt 00:02:29]} 13. cxd5 {[%clk 00:07:30]}
{[%emt 00:00:33]} Bd7 {[%clk 00:05:34]} {[%emt 00:00:01]} 14. h3 {[%clk
00:06:49]} {[%emt 00:00:45]} Nf6 {[%clk 00:04:57]} {[%emt 00:00:43]} 15. Rae1
{[%clk 00:06:36]} {[%emt 00:00:18]} O-O {[%clk 00:04:32]} {[%emt 00:00:30]} 16.
Qxe3 {[%clk 00:05:49]} {[%emt 00:00:52]} fxe3 {[%clk 00:04:36]} 17. Bc4 {[%clk
00:05:52]} {[%emt 00:00:02]} b5 {[%clk 00:03:37]} {[%emt 00:01:05]} 18. Bb3
{[%clk 00:05:31]} {[%emt 00:00:26]} b4 {[%clk 00:03:42]} 19. Nd1 {[%clk
00:05:34]} {[%emt 00:00:02]} e2 {[%clk 00:02:29]} {[%emt 00:01:18]} 20. Rxe2
{[%clk 00:05:30]} {[%emt 00:00:08]} Bb5 {[%clk 00:02:33]} 21. Rfe1 {[%clk
00:05:33]} {[%emt 00:00:02]} Bxe2 {[%clk 00:02:35]} {[%emt 00:00:03]} 22. Rxe2
{[%clk 00:05:37]} Nbd7 {[%clk 00:02:37]} {[%emt 00:00:04]} 23. Ne5 {[%clk
00:05:04]} {[%emt 00:00:38]} Nb6 {[%clk 00:00:56]} {[%emt 00:01:46]} 24. Ne3
{[%clk 00:05:01]} {[%emt 00:00:07]} Ne4 {[%clk 00:00:37]} {[%emt 00:00:24]} 25.
Kh2 {[%clk 00:04:51]} {[%emt 00:00:15]} Rad8 {[%clk 00:00:37]} {[%emt
00:00:05]} 26. Nf5 {[%clk 00:04:27]} {[%emt 00:00:29]} Nd6 {[%clk 00:00:41]} 27.
Ne7+ {[%clk 00:04:29]} {[%emt 00:00:02]} Kh8 {[%clk 00:00:46]} 28. N5c6 {[%clk
00:04:32]} {[%emt 00:00:03]} Rde8 {[%clk 00:00:41]} {[%emt 00:00:10]} 29. Nxb4
{[%clk 00:03:32]} {[%emt 00:01:05]} Nbc8 {[%emt 00:00:23]} 30. Nbc6 {[%clk
00:03:34]} Nf5 {[%clk 00:00:26]} {[%emt 00:00:06]} 31. d6 {[%clk 00:03:29]}
{[%emt 00:00:09]} Nfxd6 {[%clk 00:00:29]} {[%emt 00:00:02]} 32. g4 {[%clk
00:03:07]} {[%emt 00:00:26]} Nxe7 {[%clk 00:00:32]} {[%emt 00:00:03]} 33. Rxe7
{[%clk 00:02:17]} {[%emt 00:00:56]} Rxe7 {[%clk 00:00:36]} 34. Nxe7 {[%clk
00:02:19]} {[%emt 00:00:02]} Re8 {[%clk 00:00:41]} 35. Nc6 {[%clk 00:01:40]}
{[%emt 00:00:45]} Re2+ {[%clk 00:00:45]} {[%emt 00:00:01]} 36. Kg3 {[%clk
00:01:43]} {[%emt 00:00:02]} a6 {[%clk 00:00:49]} {[%emt 00:00:01]} 37. Ne5
{[%clk 00:01:43]} {[%emt 00:00:04]} f6 {[%clk 00:00:42]} {[%emt 00:00:13]} 38.
Nf7+ {[%clk 00:01:08]} {[%emt 00:00:40]} Nxf7 {[%clk 00:00:46]} {[%emt
00:00:01]} 39. Bxf7 {[%clk 00:01:12]} {[%emt 00:00:07]} 0-1

[Event "Open NK Rapid 2025"]
[Site "Helmond, Netherlands"]
[Date "2025.05.03"]
[Round "8.19"]
[White "Roebers, Jan"]
[Black "Van Wamel, Gijs"]
[Result "1-0"]
[TimeControl "15+5"]
[WhiteFideId "1007815"]
[BlackFideId "40102165"]
[WhiteElo "2058"]
[BlackElo "1713"]

1. e4 {[%clk 00:15:07]} {[%emt 00:00:03]} c5 {[%clk 00:15:09]} {[%emt
00:00:01]} 2. a3 {[%clk 00:15:10]} {[%emt 00:00:02]} g6 {[%clk 00:15:12]}
{[%emt 00:00:02]} 3. b4 {[%clk 00:15:13]} {[%emt 00:00:02]} Bg7 {[%clk
00:15:15]} {[%emt 00:00:02]} 4. Nc3 {[%clk 00:15:16]} {[%emt 00:00:03]} b6
{[%clk 00:15:07]} {[%emt 00:00:12]} 5. b5 {[%clk 00:15:07]} {[%emt 00:00:13]}
e6 {[%clk 00:14:58]} {[%emt 00:00:14]} 6. Nf3 {[%clk 00:14:44]} {[%emt
00:00:28]} Ne7 {[%clk 00:14:59]} {[%emt 00:00:05]} 7. Be2 {[%clk 00:14:31]}
{[%emt 00:00:18]} O-O {[%clk 00:14:59]} {[%emt 00:00:05]} 8. O-O {[%clk
00:14:33]} {[%emt 00:00:03]} d5 {[%clk 00:14:57]} {[%emt 00:00:07]} 9. exd5
{[%clk 00:14:33]} {[%emt 00:00:04]} Nxd5 {[%clk 00:14:26]} {[%emt 00:00:36]} 10.
Bb2 {[%clk 00:14:36]} {[%emt 00:00:02]} Bb7 {[%clk 00:14:17]} {[%emt 00:00:14]}
11. a4 {[%clk 00:14:26]} {[%emt 00:00:16]} Nd7 {[%clk 00:13:52]} {[%emt
00:00:29]} 12. Ra3 {[%clk 00:14:07]} {[%emt 00:00:24]} Nb4 {[%clk 00:13:20]}
{[%emt 00:00:37]} 13. Qc1 {[%clk 00:13:34]} {[%emt 00:00:37]} Qc7 {[%clk
00:12:55]} {[%emt 00:00:31]} 14. Nb1 {[%clk 00:12:16]} {[%emt 00:01:23]} Nf6
{[%clk 00:12:33]} {[%emt 00:00:27]} 15. Be5 {[%clk 00:11:58]} {[%emt 00:00:23]}
Qd7 {[%clk 00:12:13]} {[%emt 00:00:26]} 16. Qb2 {[%clk 00:11:52]} {[%emt
00:00:10]} Ne8 {[%clk 00:11:44]} {[%emt 00:00:34]} 17. Bxg7 {[%clk 00:11:22]}
{[%emt 00:00:35]} Nxg7 {[%clk 00:11:46]} {[%emt 00:00:04]} 18. a5 {[%clk
00:09:37]} {[%emt 00:01:50]} Nf5 {[%clk 00:10:34]} {[%emt 00:01:16]} 19. a6
{[%clk 00:09:15]} {[%emt 00:00:27]} Bc8 {[%clk 00:10:17]} {[%emt 00:00:22]} 20.
Ng5 {[%clk 00:08:33]} {[%emt 00:00:47]} Qe7 {[%clk 00:09:05]} {[%emt 00:01:17]}
21. Ne4 {[%clk 00:06:50]} {[%emt 00:01:48]} e5 {[%clk 00:08:46]} {[%emt
00:00:23]} 22. f4 {[%clk 00:06:23]} {[%emt 00:00:32]} f6 {[%clk 00:08:07]}
{[%emt 00:00:45]} 23. fxe5 {[%clk 00:06:05]} {[%emt 00:00:23]} fxe5 {[%clk
00:06:24]} {[%emt 00:01:48]} 24. Bc4+ {[%clk 00:06:00]} {[%emt 00:00:09]} Kg7
{[%clk 00:06:12]} {[%emt 00:00:18]} 25. c3 {[%clk 00:05:25]} {[%emt 00:00:40]}
Nxa6 {[%clk 00:04:44]} {[%emt 00:01:33]} 26. bxa6 {[%clk 00:05:22]} {[%emt
00:00:09]} Bd7 {[%clk 00:04:26]} {[%emt 00:00:23]} 27. Bb5 {[%clk 00:04:37]}
{[%emt 00:00:48]} Be6 {[%clk 00:04:23]} {[%emt 00:00:09]} 28. Ra1 {[%clk
00:03:25]} {[%emt 00:01:17]} Qh4 {[%clk 00:04:08]} {[%emt 00:00:19]} 29. Bc6
{[%clk 00:02:34]} {[%emt 00:00:52]} Ne3 {[%clk 00:02:57]} {[%emt 00:01:21]} 30.
dxe3 {[%clk 00:02:00]} {[%emt 00:00:39]} Rxf1+ {[%clk 00:02:59]} {[%emt
00:00:03]} 31. Kxf1 {[%clk 00:02:04]} Rf8+ {[%clk 00:02:58]} {[%emt 00:00:06]}
32. Nf2 {[%clk 00:02:02]} {[%emt 00:00:07]} Bc4+ {[%clk 00:02:50]} {[%emt
00:00:13]} 33. Kg1 {[%clk 00:02:02]} {[%emt 00:00:06]} Rd8 {[%clk 00:02:05]}
{[%emt 00:00:49]} 34. Na3 {[%clk 00:01:56]} {[%emt 00:00:12]} Be6 {[%clk
00:02:08]} {[%emt 00:00:01]} 35. Rf1 {[%clk 00:01:43]} {[%emt 00:00:18]} Qg5
{[%clk 00:01:52]} {[%emt 00:00:21]} 36. Qe2 {[%clk 00:01:34]} {[%emt 00:00:14]}
Rf8 {[%clk 00:01:45]} {[%emt 00:00:12]} 37. Nc2 {[%clk 00:01:17]} {[%emt
00:00:22]} h5 {[%clk 00:01:45]} {[%emt 00:00:05]} 38. Ne1 {[%clk 00:01:18]}
{[%emt 00:00:04]} h4 {[%clk 00:01:43]} {[%emt 00:00:07]} 39. Nf3 {[%clk
00:01:19]} {[%emt 00:00:03]} Qh5 {[%clk 00:01:41]} {[%emt 00:00:07]} 40. c4
{[%clk 00:01:14]} {[%emt 00:00:11]} g5 {[%clk 00:01:34]} {[%emt 00:00:12]} 41.
Qb2 {[%clk 00:01:15]} {[%emt 00:00:05]} 1-0

[Event "Open NK Rapid 2025"]
[Site "Helmond, Netherlands"]
[Date "2025.05.03"]
[Round "8.20"]
[White "Zhang, Xiheng"]
[Black "Kshirsagar, Pranav"]
[Result "1/2-1/2"]
[TimeControl "15+5"]
[WhiteFideId "40102386"]
[BlackFideId "1084011"]
[WhiteElo "1778"]
[BlackElo "2049"]

1. e4 {[%clk 00:15:09]} c6 {[%clk 00:15:09]} {[%emt 00:00:01]} 2. d4 {[%clk
00:15:12]} {[%emt 00:00:02]} d5 {[%clk 00:15:14]} {[%emt 00:00:01]} 3. exd5
{[%clk 00:15:16]} {[%emt 00:00:01]} cxd5 {[%clk 00:15:18]} {[%emt 00:00:01]} 4.
c4 {[%clk 00:15:15]} {[%emt 00:00:05]} Nf6 {[%clk 00:15:20]} {[%emt 00:00:04]}
5. Nc3 {[%clk 00:15:19]} {[%emt 00:00:01]} Nc6 {[%clk 00:15:24]} 6. Nf3 {[%clk
00:15:22]} {[%emt 00:00:02]} Bg4 {[%clk 00:15:27]} {[%emt 00:00:01]} 7. cxd5
{[%clk 00:15:26]} {[%emt 00:00:02]} Nxd5 {[%clk 00:15:31]} 8. Qb3 {[%clk
00:15:28]} {[%emt 00:00:01]} Bxf3 {[%clk 00:15:21]} {[%emt 00:00:16]} 9. gxf3
{[%clk 00:15:31]} {[%emt 00:00:02]} e6 {[%clk 00:11:05]} {[%emt 00:04:21]} 10.
Qxb7 {[%clk 00:15:30]} {[%emt 00:00:06]} Ndb4 {[%clk 00:11:09]} {[%emt
00:00:01]} 11. Bb5 {[%clk 00:12:47]} {[%emt 00:02:48]} Qc8 {[%clk 00:11:08]}
{[%emt 00:00:06]} 12. Bxc6+ {[%clk 00:11:48]} {[%emt 00:01:04]} Nxc6 {[%clk
00:11:08]} {[%emt 00:00:05]} 13. Qxc8+ {[%clk 00:11:33]} {[%emt 00:00:20]} Rxc8
{[%clk 00:11:12]} {[%emt 00:00:01]} 14. Be3 {[%clk 00:11:01]} {[%emt 00:00:37]}
Be7 {[%clk 00:11:09]} {[%emt 00:00:09]} 15. O-O {[%clk 00:10:38]} {[%emt
00:00:28]} Bf6 {[%clk 00:09:33]} {[%emt 00:01:40]} 16. d5 {[%clk 00:09:00]}
{[%emt 00:01:43]} Bxc3 {[%clk 00:08:42]} {[%emt 00:00:56]} 17. dxc6 {[%clk
00:08:48]} {[%emt 00:00:17]} Bxb2 {[%clk 00:07:11]} {[%emt 00:01:36]} 18. Rab1
{[%clk 00:08:28]} {[%emt 00:00:25]} Be5 {[%clk 00:07:12]} {[%emt 00:00:04]} 19.
Bxa7 {[%clk 00:07:03]} {[%emt 00:01:30]} Rxc6 {[%clk 00:07:07]} {[%emt
00:00:10]} 20. Rfe1 {[%clk 00:06:08]} {[%emt 00:01:01]} Bd6 {[%clk 00:05:54]}
{[%emt 00:01:18]} 21. Bb8 {[%emt 00:01:45]} O-O {[%clk 00:05:20]} {[%emt
00:00:02]} 22. Bxd6 {[%clk 00:05:05]} {[%emt 00:00:05]} Rxd6 {[%clk 00:05:24]}
23. a4 {[%clk 00:04:02]} {[%emt 00:01:07]} Ra8 {[%clk 00:04:39]} {[%emt
00:00:50]} 24. Rb4 {[%clk 00:03:43]} {[%emt 00:00:24]} Rd3 {[%clk 00:04:04]}
{[%emt 00:00:39]} 25. Reb1 {[%clk 00:03:18]} {[%emt 00:00:31]} h5 {[%clk
00:03:46]} {[%emt 00:00:23]} 26. Rb8+ {[%clk 00:02:54]} {[%emt 00:00:30]} Rxb8
{[%clk 00:03:50]} 27. Rxb8+ {[%clk 00:02:57]} {[%emt 00:00:02]} Kh7 {[%clk
00:03:55]} 28. Kg2 {[%clk 00:02:54]} {[%emt 00:00:07]} g5 {[%clk 00:03:45]}
{[%emt 00:00:15]} 29. a5 {[%clk 00:02:10]} {[%emt 00:00:49]} Ra3 {[%clk
00:03:47]} {[%emt 00:00:04]} 30. Ra8 {[%clk 00:01:51]} {[%emt 00:00:24]} Kg6
{[%clk 00:01:58]} {[%emt 00:01:53]} 31. a6 {[%clk 00:01:32]} {[%emt 00:00:25]}
Kf5 {[%clk 00:01:59]} {[%emt 00:00:03]} 32. Ra7 {[%clk 00:00:43]} {[%emt
00:00:55]} f6 {[%clk 00:02:01]} {[%emt 00:00:02]} 33. Ra8 {[%clk 00:00:35]}
{[%emt 00:00:14]} h4 {[%clk 00:02:05]} 34. h3 {[%clk 00:00:34]} {[%emt
00:00:05]} e5 {[%clk 00:01:37]} {[%emt 00:00:33]} 35. a7 {[%clk 00:00:19]}
{[%emt 00:00:21]} Ra6 {[%clk 00:01:41]} {[%emt 00:00:01]} 36. Kh2 {[%clk
00:00:16]} {[%emt 00:00:07]} Ra3 {[%clk 00:01:41]} {[%emt 00:00:06]} 37. Kg2
{[%clk 00:00:20]} {[%emt 00:00:01]} Ra2 {[%clk 00:01:38]} {[%emt 00:00:07]} 38.
Kg1 {[%clk 00:00:22]} {[%emt 00:00:04]} Ra6 {[%clk 00:01:10]} {[%emt 00:00:33]}
39. Kg2 {[%clk 00:00:26]} {[%emt 00:00:01]} Ra3 {[%clk 00:01:09]} {[%emt
00:00:05]} 40. Kg1 {[%clk 00:00:19]} {[%emt 00:00:12]} Ra1+ {[%clk 00:00:24]}
{[%emt 00:00:50]} 41. Kg2 {[%clk 00:00:23]} Ra2 {[%clk 00:00:28]} {[%emt
00:00:01]} 42. Kg1 {[%clk 00:00:26]} {[%emt 00:00:02]} Ra1+ {[%clk 00:00:16]}
{[%emt 00:00:18]} 43. Kg2 {[%clk 00:00:30]} Ra6 {[%clk 00:00:20]} 44. Kh2
{[%clk 00:00:30]} {[%emt 00:00:06]} Ra3 {[%clk 00:00:12]} {[%emt 00:00:13]} 45.
Kg2 {[%clk 00:00:33]} {[%emt 00:00:01]} Ra1 {[%clk 00:00:12]} {[%emt 00:00:05]}
46. Kh2 {[%clk 00:00:37]} {[%emt 00:00:01]} Ra4 {[%clk 00:00:16]} {[%emt
00:00:02]} 47. Kg1 {[%clk 00:00:39]} {[%emt 00:00:03]} Ra3 {[%clk 00:00:18]}
{[%emt 00:00:03]} 48. Kg2 {[%clk 00:00:42]} {[%emt 00:00:01]} Ra2 {[%clk
00:00:23]} {[%emt 00:00:01]} 49. Kg1 {[%clk 00:00:46]} {[%emt 00:00:01]}
1/2-1/2